bitfinex/quotes_BTCUSD_20250114
["timestamp","ask_amount","ask_price","bid_price","bid_amount"]
[1736829176867,0.003,95013.0,95006.0,0.0792526]
[1736829176978,0.18920384,95012.0,95006.0,0.0008526]
[1736829177186,0.0205851,95009.0,95006.0,0.0008526]
[1736829177391,0.13038894,95009.0,95006.0,0.0008526]
[1736829177593,0.10980384,95009.0,95006.0,0.0008526]
[1736829178665,0.21051,95007.0,95006.0,0.0008526]
[1736829179694,0.32031384,95007.0,95006.0,0.0008526]
[1736829181344,0.32131384,95007.0,95006.0,0.0008526]
[1736829182206,0.32331384,95007.0,95006.0,0.0008526]
[1736829182346,0.33143836,95007.0,95006.0,0.0008526]
[1736829183204,0.33015269,95007.0,95006.0,0.0008526]
[1736829183442,0.33615269,95007.0,95006.0,0.0008526]
[1736829183649,0.33715269,95007.0,95006.0,0.0008526]
[1736829184028,0.33615269,95007.0,95006.0,0.0008526]
[1736829184244,0.33815269,95007.0,95006.0,0.0008526]
[1736829186384,0.33994336,95007.0,95006.0,0.0008526]
[1736829189722,0.32881884,95007.0,95006.0,0.0008526]
[1736829192115,0.50181884,95007.0,95006.0,0.0008526]
[1736829198520,0.58461884,95007.0,95006.0,0.0008526]
[1736829198714,0.63281884,95007.0,95006.0,0.0008526]
[1736829199808,0.63081884,95007.0,95006.0,0.0008526]
[1736829200024,0.63481884,95007.0,95006.0,0.0008526]
[1736829200423,0.62881884,95007.0,95006.0,0.0008526]
[1736829200585,0.63781884,95007.0,95006.0,0.0008526]
[1736829202276,0.63381884,95007.0,95006.0,0.0008526]
[1736829202675,0.63981884,95007.0,95006.0,0.0008526]
[1736829203180,0.63381884,95007.0,95006.0,0.0008526]
[1736829203543,0.62481884,95007.0,95006.0,0.0008526]
[1736829203700,0.63981884,95007.0,95006.0,0.0008526]
[1736829204017,0.63081884,95007.0,95006.0,0.0008526]
[1736829204440,0.63981884,95007.0,95006.0,0.0008526]
[1736829205071,0.63381884,95007.0,95006.0,0.0008526]
[1736829205403,0.63981884,95007.0,95006.0,0.0008526]
[1736829224676,0.59161884,95007.0,95006.0,0.0008526]
[1736829227359,0.58561884,95007.0,95006.0,0.0008526]
[1736829227560,0.57661884,95007.0,95006.0,0.0008526]
[1736829227950,0.58561884,95007.0,95006.0,0.0008526]
[1736829228151,0.57661884,95007.0,95006.0,0.0008526]
[1736829228479,0.58561884,95007.0,95006.0,0.0008526]
[1736829228862,0.59261884,95007.0,95006.0,0.0008526]
[1736829229269,0.58561884,95007.0,95006.0,0.0008526]
[1736829229581,0.69261884,95007.0,95006.0,0.0008526]
[1736829230192,0.68561884,95007.0,95006.0,0.0008526]
[1736829230365,0.67661884,95007.0,95006.0,0.0008526]
[1736829230732,0.50981884,95007.0,95006.0,0.0008526]
[1736829231484,0.50081884,95007.0,95006.0,0.0008526]
[1736829232039,0.50981884,95007.0,95006.0,0.0008526]
[1736829232440,0.50281884,95007.0,95006.0,0.0008526]
[1736829232640,0.50981884,95007.0,95006.0,0.0008526]
[1736829233276,0.50281884,95007.0,95006.0,0.0008526]
[1736829233482,0.50881884,95007.0,95006.0,0.0008526]
[1736829239347,0.50281884,95007.0,95006.0,0.0008526]
[1736829239557,0.49381884,95007.0,95006.0,0.0008526]
[1736829239783,0.49781884,95007.0,95006.0,0.0008526]
[1736829239957,0.50681884,95007.0,95006.0,0.0008526]
[1736829240152,0.49381884,95007.0,95006.0,0.0008526]
[1736829240610,0.50881884,95007.0,95006.0,0.0008526]
[1736829241316,0.49981884,95007.0,95006.0,0.0008526]
[1736829241728,0.50281884,95007.0,95006.0,0.0008526]
[1736829242110,0.50881884,95007.0,95006.0,0.0008526]
[1736829265338,0.50281884,95007.0,95006.0,0.0008526]
[1736829265566,0.50881884,95007.0,95006.0,0.0008526]
[1736829266443,0.49981884,95007.0,95006.0,0.0008526]
[1736829266625,0.50881884,95007.0,95006.0,0.0008526]
[1736829267925,0.49981884,95007.0,95006.0,0.0008526]
[1736829268132,0.49381884,95007.0,95006.0,0.0008526]
[1736829268412,0.50881884,95007.0,95006.0,0.0008526]
[1736829273355,0.58471884,95007.0,95006.0,0.0008526]
[1736829273508,0.78471884,95007.0,95006.0,0.0008526]
[1736829274249,0.77871884,95007.0,95006.0,0.0008526]
[1736829274681,0.77571884,95007.0,95006.0,0.0008526]
[1736829275054,0.78471884,95007.0,95006.0,0.0008526]
[1736829279494,0.68471884,95007.0,95006.0,0.0008526]
[1736829279831,0.78471884,95007.0,95006.0,0.0008526]
[1736829282275,0.383563,94983.0,94982.0,0.05859568]
[1736829282476,0.49336684,94983.0,94982.0,0.07169783]
[1736829282719,0.49336684,94983.0,94982.0,0.05868802]
[1736829283750,0.49736684,94983.0,94982.0,0.05868802]
[1736829284742,0.49836684,94983.0,94982.0,0.05868802]
[1736829286932,0.51952328,94983.0,94982.0,0.05868802]
[1736829287349,0.51952328,94983.0,94982.0,9.234e-05]
[1736829291055,0.51952328,94983.0,94982.0,0.00094524]
[1736829291260,0.52131437,94983.0,94982.0,0.00094524]
[1736829302114,0.50015793,94983.0,94982.0,0.08224524]
[1736829306894,0.50015793,94983.0,94982.0,0.00094524]
[1736829309291,0.49615793,94983.0,94982.0,0.00094524]
[1736829309633,0.50015793,94983.0,94982.0,0.00094524]
[1736829309953,0.49915793,94983.0,94982.0,0.00094524]
[1736829310169,0.35015793,94983.0,94982.0,0.00094524]
[1736829311695,0.24035409,94983.0,94982.0,0.00094524]
[1736829312339,0.24035409,94983.0,94982.0,0.04624524]
[1736829312540,0.24035409,94983.0,94982.0,0.05975223]
[1736829313105,0.02979109,94983.0,94982.0,0.05975223]
[1736829313309,0.02979109,94983.0,94982.0,0.04624524]
[1736829313967,0.02879109,94983.0,94982.0,0.04624524]
[1736829314251,0.02579109,94983.0,94982.0,0.14105223]
[1736829314814,0.02779109,94983.0,94982.0,0.14105223]
[1736829316732,0.02879109,94983.0,94982.0,0.14105223]
[1736829319640,0.02879109,94983.0,94982.0,0.01445223]
[1736829320270,0.02579109,94983.0,94982.0,0.01445223]
[1736829320670,0.13759493,94983.0,94982.0,0.01445223]
[1736829320871,0.13459493,94983.0,94982.0,0.01445223]
[1736829321198,0.13859493,94983.0,94982.0,0.00094524]
[1736829321529,0.13759493,94983.0,94982.0,0.00094524]
[1736829321761,0.13859493,94983.0,94982.0,0.00094524]
[1736829322951,0.02879109,94983.0,94982.0,0.00094524]
[1736829323179,0.02879109,94983.0,94982.0,0.07664524]
[1736829323972,0.02479109,94983.0,94982.0,0.07664524]
[1736829324283,0.02879109,94983.0,94982.0,0.00094524]
[1736829324688,0.02479109,94983.0,94982.0,0.00094524]
[1736829325146,0.02579109,94983.0,94982.0,0.00094524]
[1736829325644,0.02479109,94983.0,94982.0,0.00094524]
[1736829326115,0.02779109,94983.0,94982.0,0.00094524]
[1736829326322,0.02479109,94983.0,94982.0,0.00094524]
[1736829326705,0.02779109,94983.0,94982.0,0.00094524]
[1736829327146,0.02879109,94983.0,94982.0,0.00094524]
[1736829329284,0.02879109,94983.0,94982.0,0.01309828]
[1736829329420,0.02879109,94983.0,94982.0,0.00094524]
[1736829330021,0.02579109,94983.0,94982.0,0.00094524]
[1736829330264,0.02779109,94983.0,94982.0,0.00094524]
[1736829330538,0.02479109,94983.0,94982.0,0.00094524]
[1736829330748,0.02779109,94983.0,94982.0,0.01431208]
[1736829331293,0.02679109,94983.0,94982.0,0.01431208]
[1736829331769,0.02779109,94983.0,94982.0,0.01431208]
[1736829331935,0.02779109,94983.0,94982.0,0.02246307]
[1736829332110,0.02779109,94983.0,94982.0,0.00094524]
[1736829332289,0.02779109,94983.0,94982.0,0.02246117]
[1736829332487,0.02779109,94983.0,94982.0,0.00094524]
[1736829332714,0.02779109,94983.0,94982.0,0.02245666]
[1736829332921,0.02779109,94983.0,94982.0,0.00094524]
[1736829333938,0.02679109,94983.0,94982.0,0.00094524]
[1736829334112,0.02479109,94983.0,94982.0,0.00094524]
[1736829334492,0.02579109,94983.0,94982.0,0.00094524]
[1736829338612,0.02480768,94983.0,94982.0,0.00094524]
[1736829341814,0.02480768,94983.0,94982.0,0.0224578]
[1736829344224,0.02380768,94983.0,94982.0,0.0224578]
[1736829344626,0.02480768,94983.0,94982.0,0.0224578]
[1736829346253,0.02480768,94983.0,94982.0,0.00094524]
[1736829349487,0.02676768,94983.0,94982.0,0.00094524]
[1736829349731,0.28657152,94983.0,94982.0,0.00094524]
[1736829349978,0.36657152,94983.0,94982.0,0.00094524]
[1736829350742,0.36757152,94983.0,94982.0,0.00094524]
[1736829351181,0.37557152,94983.0,94982.0,0.00094524]
[1736829351381,0.37357152,94983.0,94982.0,0.00094524]
[1736829352602,0.36557152,94983.0,94982.0,0.00094524]
[1736829352942,0.37557152,94983.0,94982.0,0.00094524]
[1736829353146,0.37257152,94983.0,94982.0,0.00094524]
[1736829353501,0.37557152,94983.0,94982.0,0.00094524]
[1736829354626,0.14557152,94983.0,94982.0,0.00094524]
[1736829355638,0.13857152,94983.0,94982.0,0.00094524]
[1736829355855,0.13557152,94983.0,94982.0,0.00094524]
[1736829356059,0.14157152,94983.0,94982.0,0.00094524]
[1736829356265,0.14357152,94983.0,94982.0,0.00094524]
[1736829356884,0.13557152,94983.0,94982.0,0.00094524]
[1736829357092,0.14157152,94983.0,94982.0,0.00094524]
[1736829357287,0.14357152,94983.0,94982.0,0.00094524]
[1736829357468,0.13757152,94983.0,94982.0,0.00094524]
[1736829357668,0.13557152,94983.0,94982.0,0.00094524]
[1736829358752,0.14157152,94983.0,94982.0,0.00094524]
[1736829358952,0.13557152,94983.0,94982.0,0.00094524]
[1736829359158,0.13757152,94983.0,94982.0,0.00094524]
[1736829359367,0.14157152,94983.0,94982.0,0.00094524]
[1736829359585,0.13557152,94983.0,94982.0,0.00094524]
[1736829359800,0.13757152,94983.0,94982.0,0.00094524]
[1736829360136,0.14157152,94983.0,94982.0,0.00094524]
[1736829361723,0.13757152,94983.0,94982.0,0.00094524]
[1736829362127,0.13957152,94983.0,94982.0,0.00094524]
[1736829362528,0.29157152,94983.0,94982.0,0.00094524]
[1736829362974,0.36927152,94983.0,94982.0,0.00094524]
[1736829363555,0.36727152,94983.0,94982.0,0.00094524]
[1736829364020,0.36927152,94983.0,94982.0,0.00094524]
[1736829364423,0.38003472,94983.0,94982.0,0.00094524]
[1736829365157,0.37803472,94983.0,94982.0,0.00094524]
[1736829365358,0.37703472,94983.0,94982.0,0.00094524]
[1736829365840,0.38103472,94983.0,94982.0,0.00094524]
[1736829366015,0.37703472,94983.0,94982.0,0.00094524]
[1736829366800,0.38403472,94983.0,94982.0,0.00094524]
[1736829368956,0.37327152,94983.0,94982.0,0.00094524]
[1736829369367,0.37027152,94983.0,94982.0,0.00094524]
[1736829369513,0.37327152,94983.0,94982.0,0.00094524]
[1736829369718,0.36627152,94983.0,94982.0,0.00094524]
[1736829369945,0.37327152,94983.0,94982.0,0.00094524]
[1736829375467,0.29557152,94983.0,94982.0,0.00094524]
[1736829396676,0.37607152,94983.0,94982.0,0.00094524]
[1736829402173,0.29557152,94983.0,94982.0,0.00094524]
[1736829403207,0.14557152,94983.0,94982.0,0.00094524]
[1736829405201,0.37477152,94983.0,94982.0,0.00094524]
[1736829408651,0.38540804,94983.0,94982.0,0.00094524]
[1736829429295,0.30620804,94983.0,94982.0,0.00094524]
[1736829433092,0.29557152,94983.0,94982.0,0.00094524]
[1736829433289,0.14557152,94983.0,94982.0,0.00094524]
[1736829437030,0.14557152,94983.0,94982.0,0.02274975]
[1736829437258,0.14257152,94983.0,94982.0,0.02274975]
[1736829437575,0.14557152,94983.0,94982.0,0.00094524]
[1736829437771,0.13857152,94983.0,94982.0,0.00094524]
[1736829438134,0.14557152,94983.0,94982.0,0.00094524]
[1736829438338,0.13857152,94983.0,94982.0,0.00094524]
[1736829438537,0.02576768,94983.0,94982.0,0.04974524]
[1736829438747,0.02976768,94983.0,94982.0,0.04974524]
[1736829438943,0.02976768,94983.0,94982.0,0.07153639]
[1736829439986,0.02776768,94983.0,94982.0,0.07153639]
[1736829440369,0.02776768,94983.0,94982.0,0.04974524]
[1736829440575,0.02576768,94983.0,94982.0,0.04974524]
[1736829440943,0.03076768,94983.0,94982.0,0.04974524]
[1736829441523,0.02576768,94983.0,94982.0,0.04974524]
[1736829441901,0.02576768,94983.0,94982.0,0.00094524]
[1736829441902,0.02976768,94983.0,94982.0,0.00094524]
[1736829443235,0.02576768,94983.0,94982.0,0.00094524]
[1736829443429,0.02876768,94983.0,94982.0,0.00094524]
[1736829447213,0.00675109,94983.0,94982.0,0.12724524]
[1736829447366,0.00675109,94983.0,94982.0,0.12829791]
[1736829447542,0.00675109,94983.0,94982.0,0.52958779]
[1736829447748,0.00675109,94983.0,94982.0,2.12853512]
[1736829448067,0.00575109,94983.0,94982.0,2.27121259]
[1736829448275,0.00575109,94983.0,94982.0,2.37121259]
[1736829448651,0.00179067,95007.0,95004.0,0.210517]
[1736829448875,0.00179067,95007.0,95006.0,0.1263]
[1736829449189,0.02479067,95007.0,95006.0,0.1487455]
[1736829449349,0.00179067,95007.0,95006.0,0.1487455]
[1736829450380,0.00179067,95007.0,95006.0,0.3592585]
[1736829450583,0.00179067,95007.0,95006.0,0.3602585]
[1736829450782,0.00179067,95007.0,95006.0,0.3612585]
[1736829450989,0.00179067,95007.0,95006.0,0.3602585]
[1736829451186,0.00179067,95007.0,95006.0,1.8612585]
[1736829451412,0.00179067,95007.0,95006.0,1.8602585]
[1736829451817,0.00179067,95007.0,95006.0,0.3602585]
[1736829452818,0.00179067,95007.0,95006.0,0.37096058]
[1736829453023,0.00179067,95007.0,95006.0,0.37396058]
[1736829453678,0.00179067,95007.0,95006.0,0.37296058]
[1736829454022,0.00179067,95007.0,95006.0,0.37396058]
[1736829459441,0.00179067,95007.0,95006.0,0.36996058]
[1736829459622,0.00179067,95007.0,95006.0,0.81288442]
[1736829459772,0.00179067,95007.0,95006.0,0.81388442]
[1736829459970,0.00179067,95007.0,95006.0,2.31388442]
[1736829460416,0.00179067,95007.0,95006.0,2.30988442]
[1736829460795,0.00279067,95007.0,95006.0,2.31388442]
[1736829460996,0.00179067,95007.0,95006.0,2.31088442]
[1736829461201,0.00179067,95007.0,95006.0,2.30988442]
[1736829462615,0.00279067,95007.0,95006.0,2.31288442]
[1736829462782,0.00379067,95007.0,95006.0,2.31688442]
[1736829462985,0.00379067,95007.0,95006.0,2.46688442]
[1736829463927,0.00179067,95007.0,95006.0,2.45988442]
[1736829464128,0.00179067,95007.0,95006.0,2.46288442]
[1736829464330,0.00179235,95017.0,95016.0,0.53359]
[1736829464530,0.00179235,95017.0,95016.0,2.14320584]
[1736829464740,0.00179235,95017.0,95016.0,1.62960599]
[1736829464940,0.00179235,95017.0,95016.0,3.09660399]
[1736829465826,0.00179235,95017.0,95016.0,3.06851499]
[1736829466011,0.00279235,95017.0,95016.0,3.07151499]
[1736829466450,0.00279235,95017.0,95016.0,3.07551499]
[1736829466872,0.00279235,95017.0,95016.0,3.09677423]
[1736829467883,0.00279235,95017.0,95016.0,3.09277423]
[1736829468812,0.00179235,95017.0,95016.0,3.08977423]
[1736829469508,0.00179235,95017.0,95016.0,3.10033669]
[1736829469714,0.00279235,95017.0,95016.0,3.11333669]
[1736829469924,0.00179235,95017.0,95016.0,3.10433669]
[1736829470331,0.00279235,95017.0,95016.0,3.11333669]
[1736829470492,0.00279235,95017.0,95016.0,3.10933669]
[1736829470892,0.00379235,95017.0,95016.0,3.11433669]
[1736829471462,0.00279235,95017.0,95016.0,3.10933669]
[1736829471609,0.00379235,95017.0,95016.0,2.69945569]
[1736829471820,0.00479235,95017.0,95016.0,2.70845569]
[1736829472016,0.00279235,95017.0,95016.0,2.69045569]
[1736829472890,0.00179235,95017.0,95016.0,2.68545569]
[1736829473544,0.00279235,95017.0,95016.0,2.69445569]
[1736829473744,0.00379235,95017.0,95016.0,2.36838869]
[1736829473970,0.00379235,95017.0,95016.0,3.25244169]
[1736829474241,0.00279235,95017.0,95016.0,3.24644169]
[1736829474617,0.00379235,95017.0,95016.0,3.22844169]
[1736829474822,0.00379235,95017.0,95016.0,3.22256169]
[1736829475030,0.00379235,95017.0,95016.0,2.66106369]
[1736829477309,0.00379235,95017.0,95016.0,2.70321569]
[1736829481531,0.00379235,95017.0,95016.0,2.73593751]
[1736829486170,0.00379235,95017.0,95016.0,3.15502746]
[1736829486560,0.00379235,95017.0,95016.0,2.73593751]
[1736829487180,0.11155385,95045.0,95031.0,0.1]
[1736829487355,0.11155385,95045.0,95043.0,0.210429]
[1736829487356,0.11203999,95045.0,95043.0,0.210429]
[1736829487769,0.11203999,95045.0,95044.0,0.02207418]
[1736829489858,0.11203999,95045.0,95044.0,0.02307418]
[1736829490143,0.11203999,95045.0,95044.0,0.02607418]
[1736829497450,9.5e-07,95063.0,95057.0,0.1]
[1736829497650,9.5e-07,95063.0,95045.0,0.15]
[1736829497651,9.5e-07,95063.0,95062.0,0.2]
[1736829497855,0.00011857,95063.0,95062.0,0.23979012]
[1736829498024,0.00011857,95063.0,95062.0,1.66073278]
[1736829498242,0.00011857,95063.0,95062.0,1.62787433]
[1736829498949,0.00011857,95063.0,95062.0,1.63574404]
[1736829499529,0.00011857,95063.0,95062.0,1.64274404]
[1736829499732,0.00011857,95063.0,95062.0,1.63874404]
[1736829500129,0.00111857,95063.0,95062.0,1.64774404]
[1736829500336,0.00011857,95063.0,95062.0,1.64939135]
[1736829500511,6.607e-05,95063.0,95062.0,1.64939135]
[1736829501110,6.607e-05,95063.0,95062.0,1.64639135]
[1736829501590,0.00185548,95063.0,95062.0,1.64939135]
[1736829501792,0.00285548,95063.0,95062.0,1.65839135]
[1736829502003,0.00285548,95063.0,95062.0,1.65539135]
[1736829502113,0.00285548,95063.0,95062.0,0.14639135]
[1736829502319,0.00185548,95063.0,95062.0,0.14939135]
[1736829502611,0.00185548,95063.0,95062.0,0.14152164]
[1736829502886,0.00285548,95063.0,95062.0,0.14652164]
[1736829503121,0.00185548,95063.0,95062.0,0.03087433]
[1736829503532,0.00285548,95063.0,95062.0,0.03987433]
[1736829503947,0.00285548,95063.0,95062.0,0.03399433]
[1736829504534,0.00285548,95063.0,95062.0,0.03099433]
[1736829504691,0.00185548,95063.0,95062.0,0.02199433]
[1736829504893,0.00185548,95063.0,95062.0,0.02499433]
[1736829505098,0.00285548,95063.0,95062.0,0.03299433]
[1736829505298,0.00185548,95063.0,95062.0,0.02199433]
[1736829505723,0.00285548,95063.0,95062.0,0.03399433]
[1736829506089,0.00185548,95063.0,95062.0,0.02199433]
[1736829506289,0.00285548,95063.0,95062.0,0.02999433]
[1736829506490,0.00285548,95063.0,95062.0,0.02199433]
[1736829506734,0.00185548,95063.0,95062.0,0.02499433]
[1736829506945,0.00185548,95063.0,95062.0,0.03087433]
[1736829508109,0.00185548,95063.0,95062.0,0.03987433]
[1736829508110,0.00285548,95063.0,95062.0,0.03987433]
[1736829508332,0.00185548,95063.0,95062.0,0.03087433]
[1736829508526,0.00185548,95063.0,95062.0,0.02499433]
[1736829508742,0.00185548,95063.0,95062.0,0.02999433]
[1736829508743,0.00285548,95063.0,95062.0,0.02999433]
[1736829508945,0.00185548,95063.0,95062.0,0.02499433]
[1736829509154,0.00285548,95063.0,95062.0,0.03199433]
[1736829509595,0.00185548,95063.0,95062.0,0.02199433]
[1736829509727,0.00285548,95063.0,95062.0,0.02999433]
[1736829511031,0.00185548,95063.0,95062.0,0.02499433]
[1736829511438,0.00285548,95063.0,95062.0,0.02899433]
[1736829511638,0.00285548,95063.0,95062.0,0.02199433]
[1736829511840,0.00285548,95063.0,95062.0,0.02499433]
[1736829512039,0.00385548,95063.0,95062.0,0.03299433]
[1736829512392,0.15425548,95063.0,95062.0,0.02199433]
[1736829512595,0.15525548,95063.0,95062.0,0.03099433]
[1736829513066,0.15425548,95063.0,95062.0,0.002]
[1736829513937,0.15425548,95063.0,95049.0,0.00588]
[1736829513938,0.023,95062.0,95049.0,0.00588]
[1736829514211,0.023,95062.0,95050.0,0.02357253]
[1736829515154,0.024,95062.0,95050.0,0.02357253]
[1736829515620,0.025,95062.0,95050.0,0.23398553]
[1736829515998,0.026,95062.0,95050.0,0.23398553]
[1736829519121,0.003,95062.0,95051.0,0.0010519]
[1736829519342,0.003,95062.0,95058.0,0.210395]
[1736829519516,0.003,95062.0,95060.0,0.210393]
[1736829519941,0.003,95062.0,95061.0,0.02351993]
[1736829520347,0.002,95062.0,95061.0,1.52351993]
[1736829520920,0.00185548,95063.0,95061.0,1.52351993]
[1736829521221,0.00185548,95063.0,95062.0,0.210389]
[1736829521623,0.00185548,95063.0,95061.0,0.02551993]
[1736829521824,0.00185548,95063.0,95061.0,0.02851993]
[1736829522041,0.00185548,95063.0,95061.0,0.03051993]
[1736829522042,0.1043,95062.0,95061.0,0.03051993]
[1736829522245,0.1043,95062.0,95061.0,0.02551993]
[1736829522836,0.1043,95062.0,95061.0,0.002]
[1736829523995,0.1043,95062.0,95053.0,0.210407]
[1736829524175,0.1043,95062.0,95061.0,0.001]
[1736829524372,0.1043,95062.0,95061.0,0.002852]
[1736829524601,0.1043,95062.0,95061.0,0.001852]
[1736829524777,0.1053,95062.0,95061.0,0.001852]
[1736829524978,0.1053,95062.0,95061.0,0.000852]
[1736829525366,0.1063,95062.0,95061.0,0.000852]
[1736829525865,0.1053,95062.0,95061.0,0.000852]
[1736829527539,0.1003,95062.0,95061.0,0.000852]
[1736829527763,0.1013,95062.0,95061.0,0.000852]
[1736829535819,0.10308921,95062.0,95061.0,0.000852]
[1736829539001,0.10208921,95062.0,95061.0,0.000852]
[1736829539241,0.10308921,95062.0,95061.0,0.000852]
[1736829540000,0.10208921,95062.0,95061.0,0.000852]
[1736829540178,0.10308921,95062.0,95061.0,0.000852]
[1736829544470,0.10208921,95062.0,95061.0,0.000852]
[1736829544908,0.10308921,95062.0,95061.0,0.000852]
[1736829545111,0.10208921,95062.0,95061.0,0.000852]
[1736829545748,0.02078921,95062.0,95061.0,0.000852]
[1736829546480,0.02178921,95062.0,95061.0,0.000852]
[1736829546632,0.02178921,95062.0,95061.0,0.02482913]
[1736829546840,0.02178921,95062.0,95061.0,0.000852]
[1736829546841,0.02078921,95062.0,95061.0,0.000852]
[1736829546993,0.02078921,95062.0,95061.0,0.02482913]
[1736829548163,0.01978921,95062.0,95061.0,0.02482913]
[1736829548385,0.01978921,95062.0,95061.0,0.02582913]
[1736829555498,0.01978921,95062.0,95061.0,0.001852]
[1736829558869,0.00178921,95062.0,95061.0,0.001852]
[1736829559270,0.00178921,95062.0,95061.0,0.0268704]
[1736829559618,0.00178921,95062.0,95061.0,0.00290381]
[1736829559786,0.00178921,95062.0,95061.0,0.0268704]
[1736829560495,0.00178921,95062.0,95061.0,0.1035704]
[1736829560698,0.00178921,95062.0,95061.0,0.1025704]
[1736829560900,0.00178921,95062.0,95061.0,0.11144897]
[1736829561219,0.00178921,95062.0,95061.0,0.32025281]
[1736829561359,0.00178921,95062.0,95061.0,0.324201]
[1736829561758,0.00178921,95062.0,95061.0,0.319201]
[1736829562018,0.00278921,95062.0,95061.0,0.326201]
[1736829562142,0.00278921,95062.0,95061.0,0.328201]
[1736829562768,0.00278921,95062.0,95061.0,0.326201]
[1736829562977,0.00278921,95062.0,95061.0,0.328201]
[1736829563339,0.00278921,95062.0,95061.0,0.21839716]
[1736829563588,0.00278921,95062.0,95061.0,0.11839716]
[1736829564059,0.00278921,95062.0,95061.0,0.11639716]
[1736829564499,0.00178921,95062.0,95061.0,0.10939716]
[1736829564773,0.00278921,95062.0,95061.0,0.11639716]
[1736829565522,0.00278921,95062.0,95061.0,0.11839716]
[1736829566529,0.00278921,95062.0,95061.0,0.04169716]
[1736829568934,0.00278921,95062.0,95061.0,0.04757716]
[1736829569161,0.00278921,95062.0,95061.0,0.04169716]
[1736829571527,0.00278921,95062.0,95061.0,0.03381859]
[1736829572237,0.02578921,95062.0,95061.0,0.03381859]
[1736829574146,0.02578921,95062.0,95061.0,0.009852]
[1736829575650,0.02578921,95062.0,95061.0,0.03380851]
[1736829576007,0.02578921,95062.0,95061.0,0.009852]
[1736829576161,0.02578921,95062.0,95061.0,0.03380851]
[1736829576365,0.02578921,95062.0,95061.0,0.009852]
[1736829576889,0.02578921,95062.0,95061.0,0.03380851]
[1736829577087,0.02578921,95062.0,95061.0,0.009852]
[1736829577290,0.02578921,95062.0,95061.0,0.03380851]
[1736829577491,0.02578921,95062.0,95061.0,0.009852]
[1736829578519,0.02578921,95062.0,95061.0,0.03380851]
[1736829578725,0.02578921,95062.0,95061.0,0.009852]
[1736829578928,0.02578921,95062.0,95061.0,0.03380851]
[1736829579102,0.02578921,95062.0,95061.0,0.009852]
[1736829579307,0.02578921,95062.0,95061.0,0.03380851]
[1736829579528,0.02578921,95062.0,95061.0,0.009852]
[1736829579707,0.02578921,95062.0,95061.0,0.03380851]
[1736829587674,0.00278921,95062.0,95061.0,0.03380851]
[1736829589253,0.00278921,95062.0,95061.0,0.03486036]
[1736829589638,0.00278921,95062.0,95061.0,0.04274128]
[1736829590044,0.00278921,95062.0,95061.0,0.26914128]
[1736829590259,0.00278921,95062.0,95061.0,0.36808943]
[1736829593174,0.00278921,95062.0,95061.0,1.86808943]
[1736829594898,0.00278921,95062.0,95061.0,1.97789327]
[1736829595334,0.00278921,95062.0,95061.0,1.97001235]
[1736829595917,0.00278921,95062.0,95061.0,1.97788944]
[1736829596131,0.00278921,95062.0,95061.0,0.47788944]
[1736829596587,0.00278921,95062.0,95061.0,1.97788944]
[1736829599761,0.00278921,95062.0,95061.0,0.47788944]
[1736829600176,0.00278921,95062.0,95061.0,1.97788944]
[1736829603399,0.00278921,95062.0,95061.0,0.47788944]
[1736829603850,0.00278921,95062.0,95061.0,1.97788944]
[1736829606973,0.00278921,95062.0,95061.0,0.47788944]
[1736829607486,0.00278921,95062.0,95061.0,1.97788944]
[1736829608466,0.00278921,95062.0,95061.0,1.87788944]
[1736829608802,0.00278921,95062.0,95061.0,1.97788944]
[1736829610855,0.00278921,95062.0,95061.0,0.47788944]
[1736829611349,0.00278921,95062.0,95061.0,1.97788944]
[1736829614304,0.00278921,95062.0,95061.0,0.47788944]
[1736829614722,0.00278921,95062.0,95061.0,1.97788944]
[1736829616398,0.00278921,95062.0,95061.0,1.98210344]
[1736829616865,0.00278921,95062.0,95061.0,2.01363833]
[1736829617633,0.00278921,95062.0,95061.0,0.51363833]
[1736829618370,0.00278921,95062.0,95061.0,2.01363833]
[1736829618915,0.00278921,95062.0,95061.0,2.48383833]
[1736829619116,0.00278921,95062.0,95061.0,2.55443796]
[1736829619360,0.00278921,95062.0,95061.0,4.12452396]
[1736829619706,0.00278921,95062.0,95061.0,4.20352196]
[1736829619978,0.00278921,95062.0,95061.0,4.12755696]
[1736829620208,0.00278921,95062.0,95061.0,4.11590696]
[1736829620777,0.00179151,95103.0,95077.0,0.688155]
[1736829620778,0.0825,95102.0,95077.0,0.688155]
[1736829620976,0.0825,95102.0,95077.0,2.11090964]
[1736829621155,0.0825,95102.0,95077.0,2.16153536]
[1736829621362,0.0825,95102.0,95077.0,2.19307025]
[1736829621959,0.00279109,95078.0,95077.0,2.62022466]
[1736829622181,0.00279109,95078.0,95077.0,2.65799227]
[1736829622775,0.00179109,95078.0,95077.0,2.25976766]
[1736829622976,0.00279109,95078.0,95077.0,2.26876766]
[1736829623174,0.00279109,95078.0,95077.0,2.37976766]
[1736829623379,0.00179109,95078.0,95077.0,3.87076766]
[1736829623574,0.00179109,95078.0,95077.0,3.881221]
[1736829623795,0.00179109,95078.0,95077.0,4.742021]
[1736829623796,9e-08,95078.0,95077.0,4.742021]
[1736829623996,9e-08,95078.0,95077.0,3.440979]
[1736829624152,9e-08,95078.0,95077.0,3.436979]
[1736829624675,9e-08,95078.0,95077.0,3.449979]
[1736829625079,9e-08,95078.0,95077.0,3.43810191]
[1736829625286,9e-08,95078.0,95077.0,3.43310191]
[1736829625502,0.00179151,95103.0,95099.0,0.310307]
[1736829625824,0.00193736,95100.0,95099.0,0.42599084]
[1736829626008,0.00193736,95100.0,95099.0,0.45020724]
[1736829627761,0.00193736,95100.0,95099.0,0.45120724]
[1736829628174,0.00193736,95100.0,95099.0,0.45320724]
[1736829628484,0.00193736,95100.0,95099.0,0.45120724]
[1736829628689,0.00193736,95100.0,95099.0,0.45420724]
[1736829628989,0.00193736,95100.0,95099.0,0.46185802]
[1736829629289,0.00193736,95100.0,95099.0,0.46485802]
[1736829629588,0.00193736,95100.0,95099.0,0.46185802]
[1736829629775,0.00193736,95100.0,95099.0,0.46085802]
[1736829629965,0.00193736,95100.0,95099.0,0.46485802]
[1736829630546,0.00193736,95100.0,95099.0,0.46385802]
[1736829630778,0.00193736,95100.0,95099.0,0.46485802]
[1736829632157,0.00193736,95100.0,95099.0,0.84115802]
[1736829632360,0.00193736,95100.0,95099.0,1.76716902]
[1736829632529,0.00193736,95100.0,95099.0,3.41195102]
[1736829632868,0.00193736,95100.0,95099.0,3.38880702]
[1736829633061,0.00193736,95100.0,95099.0,3.42134191]
[1736829633284,0.00193736,95100.0,95099.0,3.41834191]
[1736829633422,0.00193736,95100.0,95099.0,3.43518003]
[1736829633632,0.00193736,95100.0,95099.0,3.43418003]
[1736829633839,0.00193736,95100.0,95099.0,3.43818003]
[1736829634041,0.00193736,95100.0,95099.0,3.49674318]
[1736829634953,0.00193736,95100.0,95099.0,3.45897557]
[1736829635120,0.00193736,95100.0,95099.0,2.41032657]
[1736829635525,0.00193736,95100.0,95099.0,3.68385557]
[1736829636125,0.00193736,95100.0,95099.0,3.65232068]